[Event "*** Titled Tuesday Blitz"]
[Site "Chess.com"]
[Date "2020.12.01"]
[Round "2"]
[White "rynos0411"]
[Black "Khnykin_Nikolay"]
[Result "1-0"]
[WhiteElo "2357"]
[BlackElo "2039"]
[TimeControl "180+1"]
[EndTime "10:17:13 PST"]
[Termination "rynos0411 won by checkmate"]

1. d4 {[%clk 0:02:59.3]} 1... e6 {[%clk 0:02:58.8]} 2. c4 {[%clk 0:02:55.6]}
2... f5 {[%clk 0:02:55.3]} 3. g3 {[%clk 0:02:54.6]} 3... Nf6 {[%clk 0:02:53.1]}
4. Bg2 {[%clk 0:02:54.8]} 4... Bb4+ {[%clk 0:02:48.5]} 5. Bd2 {[%clk 0:02:52.6]}
5... Bxd2+ {[%clk 0:02:42.6]} 6. Nxd2 {[%clk 0:02:51.1]} 6... O-O {[%clk
0:02:42.9]} 7. Ngf3 {[%clk 0:02:50.8]} 7... d5 {[%clk 0:02:40.9]} 8. O-O {[%clk
0:02:50]} 8... Ne4 {[%clk 0:02:38.9]} 9. Rc1 {[%clk 0:02:45.3]} 9... c6 {[%clk
0:02:37.4]} 10. Ne5 {[%clk 0:02:43.6]} 10... Nd7 {[%clk 0:02:21.8]} 11. Nxd7
{[%clk 0:02:37.8]} 11... Bxd7 {[%clk 0:02:20.1]} 12. f3 {[%clk 0:02:38.3]} 12...
Nd6 {[%clk 0:02:12.1]} 13. e4 {[%clk 0:02:30.6]} 13... f4 {[%clk 0:02:09.3]} 14.
Qe2 {[%clk 0:02:15.8]} 14... Qg5 {[%clk 0:01:54.6]} 15. g4 {[%clk 0:02:07.5]}
15... Rae8 {[%clk 0:01:46.2]} 16. cxd5 {[%clk 0:01:59.5]} 16... exd5 {[%clk
0:01:44.8]} 17. e5 {[%clk 0:01:59.7]} 17... Nf7 {[%clk 0:01:24.7]} 18. Qf2
{[%clk 0:01:50.9]} 18... Nh6 {[%clk 0:01:23.2]} 19. h4 {[%clk 0:01:50.8]} 19...
Qg6 {[%clk 0:01:20.5]} 20. Nb3 {[%clk 0:01:44.4]} 20... Bc8 {[%clk 0:01:00.8]}
21. Qc2 {[%clk 0:01:16.9]} 21... Qf7 {[%clk 0:00:52]} 22. a4 {[%clk 0:01:10.4]}
22... Bxg4 {[%clk 0:00:40.4]} 23. fxg4 {[%clk 0:01:09.8]} 23... Nxg4 {[%clk
0:00:40]} 24. Qe2 {[%clk 0:01:09.1]} 24... Qg6 {[%clk 0:00:22.3]} 25. Nc5 {[%clk
0:00:40.1]} 25... f3 {[%clk 0:00:19.8]} 26. Rxf3 {[%clk 0:00:38.7]} 26... Rxf3
{[%clk 0:00:18.8]} 27. Qxf3 {[%clk 0:00:39.6]} 27... Rf8 {[%clk 0:00:18.4]} 28.
Qg3 {[%clk 0:00:40]} 28... Qf5 {[%clk 0:00:17.5]} 29. Rf1 {[%clk 0:00:38.1]}
29... Qc8 {[%clk 0:00:15.1]} 30. Rxf8+ {[%clk 0:00:37.2]} 30... Kxf8 {[%clk
0:00:16]} 31. Bh3 {[%clk 0:00:37.4]} 31... h5 {[%clk 0:00:14.3]} 32. Qf4+ {[%clk
0:00:36.6]} 32... Kg8 {[%clk 0:00:13.9]} 33. Bxg4 {[%clk 0:00:35.2]} 33... hxg4
{[%clk 0:00:12]} 34. e6 {[%clk 0:00:35.3]} 34... b6 {[%clk 0:00:11.5]} 35. Nd7
{[%clk 0:00:34.7]} 35... Qe8 {[%clk 0:00:10.5]} 36. Qxg4 {[%clk 0:00:30.8]}
36... g6 {[%clk 0:00:10.5]} 37. Nf6+ {[%clk 0:00:30.7]} 37... Kf8 {[%clk
0:00:10.1]} 38. Nxe8 {[%clk 0:00:31.6]} 38... Kxe8 {[%clk 0:00:10.2]} 39. Qxg6+
{[%clk 0:00:31.6]} 39... Ke7 {[%clk 0:00:09.9]} 40. Qf7+ {[%clk 0:00:32.1]}
40... Kd6 {[%clk 0:00:09.3]} 41. Qd7# {[%clk 0:00:33]} 1-0

[Event "*** Titled Tuesday Blitz"]
[Site "Chess.com"]
[Date "2020.12.01"]
[Round "2"]
[White "Jabberwockiez"]
[Black "ZEN-22"]
[Result "0-1"]
[WhiteElo "2233"]
[BlackElo "2442"]
[TimeControl "180+1"]
[EndTime "10:17:17 PST"]
[Termination "ZEN-22 won by checkmate"]

1. e4 {[%clk 0:03:00.5]} 1... d5 {[%clk 0:02:56.5]} 2. exd5 {[%clk 0:03:00.1]}
2... c6 {[%clk 0:02:55.9]} 3. dxc6 {[%clk 0:02:59.5]} 3... Nxc6 {[%clk
0:02:56.8]} 4. Nf3 {[%clk 0:03:00.1]} 4... e5 {[%clk 0:02:56.6]} 5. d3 {[%clk
0:03:00]} 5... f5 {[%clk 0:02:55.7]} 6. Be2 {[%clk 0:03:00.2]} 6... Nf6 {[%clk
0:02:55.4]} 7. O-O {[%clk 0:02:59.6]} 7... Bc5 {[%clk 0:02:52.8]} 8. Be3 {[%clk
0:02:58.8]} 8... Bd6 {[%clk 0:02:52.1]} 9. c4 {[%clk 0:02:55.2]} 9... O-O {[%clk
0:02:49.8]} 10. Nc3 {[%clk 0:02:55.2]} 10... a6 {[%clk 0:02:43.9]} 11. a3 {[%clk
0:02:54.9]} 11... h6 {[%clk 0:02:43.2]} 12. b4 {[%clk 0:02:54.7]} 12... Qc7
{[%clk 0:02:26]} 13. c5 {[%clk 0:02:53.8]} 13... Be7 {[%clk 0:02:25]} 14. Qb3+
{[%clk 0:02:53.6]} 14... Kh7 {[%clk 0:02:22.1]} 15. b5 {[%clk 0:02:40.1]} 15...
axb5 {[%clk 0:02:20.7]} 16. Nxb5 {[%clk 0:02:38.8]} 16... Qb8 {[%clk 0:02:19.4]}
17. Rab1 {[%clk 0:02:31]} 17... Ng4 {[%clk 0:02:02.8]} 18. Bd2 {[%clk
0:02:27.2]} 18... e4 {[%clk 0:02:01.8]} 19. dxe4 {[%clk 0:02:25.1]} 19... fxe4
{[%clk 0:02:01.2]} 20. h3 {[%clk 0:02:13.4]} 20... exf3 {[%clk 0:02:00.1]} 21.
Bd3+ {[%clk 0:02:12.6]} 21... Kh8 {[%clk 0:01:39]} 22. hxg4 {[%clk 0:02:11.8]}
22... fxg2 {[%clk 0:01:38.7]} 23. Rfe1 {[%clk 0:02:10]} 23... Bxc5 {[%clk
0:01:36.6]} 24. Bf5 {[%clk 0:01:51.8]} 24... Bxf5 {[%clk 0:01:32.8]} 25. gxf5
{[%clk 0:01:51.5]} 25... Rxf5 {[%clk 0:01:30.7]} 26. Qh3 {[%clk 0:01:28.7]}
26... Bxf2+ {[%clk 0:01:27.9]} 27. Kxg2 {[%clk 0:01:28.5]} 27... Bxe1 {[%clk
0:01:25.8]} 28. Rxe1 {[%clk 0:01:09.8]} 28... Rxb5 {[%clk 0:01:07]} 29. Bxh6
{[%clk 0:01:08.4]} 29... Qf8 {[%clk 0:01:01.2]} 30. Bd2+ {[%clk 0:00:19.3]}
30... Kg8 {[%clk 0:00:59.5]} 31. Rh1 {[%clk 0:00:18.6]} 31... Qf5 {[%clk
0:00:52]} 32. Qh8+ {[%clk 0:00:17.7]} 32... Kf7 {[%clk 0:00:51.9]} 33. Qxa8
{[%clk 0:00:14.1]} 33... Qg4+ {[%clk 0:00:47.2]} 34. Kf2 {[%clk 0:00:11.8]}
34... Rf5+ {[%clk 0:00:46.5]} 35. Ke1 {[%clk 0:00:11.8]} 35... Qe4+ {[%clk
0:00:45.6]} 36. Kd1 {[%clk 0:00:12.3]} 36... Qxh1+ {[%clk 0:00:44.9]} 37. Kc2
{[%clk 0:00:12.7]} 37... Qe4+ {[%clk 0:00:44.7]} 38. Kb2 {[%clk 0:00:12.6]}
38... Rb5+ {[%clk 0:00:43.8]} 39. Bb4 {[%clk 0:00:11.8]} 39... Nxb4 {[%clk
0:00:42.6]} 40. axb4 {[%clk 0:00:12.3]} 40... Rxb4+ {[%clk 0:00:41.6]} 41. Kc3
{[%clk 0:00:12.1]} 41... Qd4+ {[%clk 0:00:40.6]} 42. Kc2 {[%clk 0:00:11.9]}
42... Rb2+ {[%clk 0:00:41.4]} 43. Kc1 {[%clk 0:00:12]} 43... Qd2# {[%clk
0:00:41.8]} 0-1

[Event "*** Titled Tuesday Blitz"]
[Site "Chess.com"]
[Date "2020.12.01"]
[Round "2"]
[White "Hikaru"]
[Black "sara_khm"]
[Result "1-0"]
[WhiteElo "3196"]
[BlackElo "2594"]
[TimeControl "180+1"]
[EndTime "10:17:18 PST"]
[Termination "Hikaru won by resignation"]

1. e4 {[%clk 0:03:00.7]} 1... e5 {[%clk 0:02:59]} 2. Nf3 {[%clk 0:02:57.7]} 2...
Nc6 {[%clk 0:02:58.6]} 3. Bb5 {[%clk 0:02:57.6]} 3... a6 {[%clk 0:02:56.4]} 4.
Ba4 {[%clk 0:02:57.5]} 4... Nf6 {[%clk 0:02:52.3]} 5. d3 {[%clk 0:02:55.1]} 5...
d6 {[%clk 0:02:38.6]} 6. a3 {[%clk 0:02:53.4]} 6... Bd7 {[%clk 0:02:38.7]} 7.
Bb3 {[%clk 0:02:53.4]} 7... h6 {[%clk 0:02:36.6]} 8. O-O {[%clk 0:02:53]} 8...
g6 {[%clk 0:02:36.5]} 9. Re1 {[%clk 0:02:51.3]} 9... Bg7 {[%clk 0:02:36.7]} 10.
Nbd2 {[%clk 0:02:51.8]} 10... O-O {[%clk 0:02:36.7]} 11. Nf1 {[%clk 0:02:52.6]}
11... Nh5 {[%clk 0:02:30.2]} 12. c3 {[%clk 0:02:45.1]} 12... Kh7 {[%clk
0:02:25.6]} 13. Ne3 {[%clk 0:02:44.3]} 13... Nf4 {[%clk 0:02:24.7]} 14. d4
{[%clk 0:02:39.7]} 14... Ne7 {[%clk 0:01:49.8]} 15. dxe5 {[%clk 0:02:15.8]}
15... dxe5 {[%clk 0:01:49.5]} 16. Nc4 {[%clk 0:02:10.2]} 16... Nc6 {[%clk
0:01:37.1]} 17. Ncxe5 {[%clk 0:01:54.5]} 17... Nh3+ {[%clk 0:01:32.8]} 18. gxh3
{[%clk 0:01:51.9]} 18... Nxe5 {[%clk 0:01:33]} 19. Nxe5 {[%clk 0:01:51.8]} 19...
Bxe5 {[%clk 0:01:32.8]} 20. Qd2 {[%clk 0:01:38.3]} 20... Bg7 {[%clk 0:01:24.2]}
21. Rd1 {[%clk 0:01:29.8]} 21... Bxh3 {[%clk 0:01:19.3]} 22. Qxd8 {[%clk
0:01:29.3]} 22... Raxd8 {[%clk 0:01:18.7]} 23. Bf4 {[%clk 0:01:26.6]} 23... c6
{[%clk 0:01:13.9]} 24. f3 {[%clk 0:01:24.7]} 24... Be6 {[%clk 0:01:10.8]} 25.
Bc2 {[%clk 0:01:21.1]} 25... Bf6 {[%clk 0:01:06.2]} 26. Kf2 {[%clk 0:01:15.6]}
26... Rxd1 {[%clk 0:01:01]} 27. Rxd1 {[%clk 0:01:15.2]} 27... Rd8 {[%clk
0:01:01.5]} 28. Rg1 {[%clk 0:01:12.5]} 28... g5 {[%clk 0:00:58]} 29. e5+ {[%clk
0:00:41.5]} 29... Kh8 {[%clk 0:00:57.5]} 30. exf6 {[%clk 0:00:42.2]} 30... gxf4
{[%clk 0:00:57.5]} 31. Ke1 {[%clk 0:00:43.1]} 31... Rd6 {[%clk 0:00:45.9]} 32.
Rg7 {[%clk 0:00:41.9]} 32... Bd5 {[%clk 0:00:42.3]} 33. Rh7+ {[%clk 0:00:42.3]}
33... Kg8 {[%clk 0:00:42.7]} 34. Rxh6 {[%clk 0:00:43.2]} 34... Re6+ {[%clk
0:00:27.9]} 35. Kf2 {[%clk 0:00:41.2]} 35... Re3 {[%clk 0:00:15.3]} 36. Rh3
{[%clk 0:00:32.9]} 36... Be6 {[%clk 0:00:12.4]} 37. Rh4 {[%clk 0:00:27.8]} 37...
Bc4 {[%clk 0:00:12.6]} 38. Bh7+ {[%clk 0:00:26.5]} 38... Kf8 {[%clk 0:00:11.5]}
39. Bd3 {[%clk 0:00:27.3]} 1-0

[Event "*** Titled Tuesday Blitz"]
[Site "Chess.com"]
[Date "2020.12.01"]
[Round "2"]
[White "Taktikmonster"]
[Black "Chessalary"]
[Result "0-1"]
[WhiteElo "2195"]
[BlackElo "2421"]
[TimeControl "180+1"]
[EndTime "10:17:18 PST"]
[Termination "Chessalary won on time"]

1. e4 {[%clk 0:03:00.2]} 1... c5 {[%clk 0:02:59.2]} 2. Nf3 {[%clk 0:02:59.8]}
2... d6 {[%clk 0:02:59.3]} 3. d4 {[%clk 0:03:00.3]} 3... cxd4 {[%clk 0:03:00.2]}
4. Nxd4 {[%clk 0:03:01.2]} 4... Nf6 {[%clk 0:03:01.1]} 5. Nc3 {[%clk 0:03:01]}
5... a6 {[%clk 0:03:01.7]} 6. Be2 {[%clk 0:03:00.8]} 6... e6 {[%clk 0:03:01.6]}
7. Be3 {[%clk 0:02:59.8]} 7... Be7 {[%clk 0:03:02]} 8. f4 {[%clk 0:02:57.6]}
8... O-O {[%clk 0:03:02.4]} 9. g4 {[%clk 0:02:57.3]} 9... Qc7 {[%clk 0:03:02.9]}
10. g5 {[%clk 0:02:54.2]} 10... Nfd7 {[%clk 0:03:03]} 11. Qd2 {[%clk 0:02:44.6]}
11... b5 {[%clk 0:03:01.2]} 12. a3 {[%clk 0:02:44.4]} 12... Bb7 {[%clk
0:03:01.1]} 13. O-O-O {[%clk 0:02:36]} 13... Nc6 {[%clk 0:02:59.7]} 14. Nxc6
{[%clk 0:02:02.7]} 14... Bxc6 {[%clk 0:03:00.6]} 15. f5 {[%clk 0:01:55.6]} 15...
exf5 {[%clk 0:02:46.8]} 16. exf5 {[%clk 0:01:56.5]} 16... Rfc8 {[%clk
0:02:36.7]} 17. Rhg1 {[%clk 0:01:44.7]} 17... Ne5 {[%clk 0:02:33.8]} 18. Bf4
{[%clk 0:01:16.9]} 18... Qa5 {[%clk 0:02:19.8]} 19. f6 {[%clk 0:01:03.2]} 19...
Bf8 {[%clk 0:02:19.4]} 20. fxg7 {[%clk 0:01:00.8]} 20... Bxg7 {[%clk 0:02:19.2]}
21. Qxd6 {[%clk 0:00:58.9]} 21... Nc4 {[%clk 0:02:10]} 22. Bxc4 {[%clk
0:00:49.2]} 22... bxc4 {[%clk 0:02:10.9]} 23. Nd5 {[%clk 0:00:38.8]} 23... Bxd5
{[%clk 0:02:04.1]} 24. Rxd5 {[%clk 0:00:39.2]} 24... Qa4 {[%clk 0:01:38.3]} 25.
Be5 {[%clk 0:00:37.1]} 25... c3 {[%clk 0:01:29]} 26. b3 {[%clk 0:00:18.5]} 26...
Qe4 {[%clk 0:01:09.7]} 27. Bxg7 {[%clk 0:00:17.4]} 27... Qe3+ {[%clk 0:01:08]}
28. Kb1 {[%clk 0:00:13.1]} 28... Qxg1+ {[%clk 0:01:08.2]} 29. Rd1 {[%clk
0:00:12.1]} 29... Qe3 {[%clk 0:01:02]} 30. Bd4 {[%clk 0:00:10.7]} 30... Qe6
{[%clk 0:00:58.6]} 31. Qg3 {[%clk 0:00:02.9]} 31... Rab8 {[%clk 0:00:56.6]} 32.
Re1 {[%clk 0:00:02.4]} 32... Rxb3+ {[%clk 0:00:56.4]} 33. Kc1 {[%clk 0:00:02.8]}
33... Rxa3 {[%clk 0:00:53.6]} 34. Bxc3 {[%clk 0:00:01.3]} 34... Qd5 {[%clk
0:00:36.9]} 35. Re6 {[%clk 0:00:01.9]} 35... Qxe6 {[%clk 0:00:32.1]} 0-1

[Event "*** Titled Tuesday Blitz"]
[Site "Chess.com"]
[Date "2020.12.01"]
[Round "2"]
[White "Talaris"]
[Black "Homino"]
[Result "0-1"]
[WhiteElo "1977"]
[BlackElo "2350"]
[TimeControl "180+1"]
[EndTime "10:17:18 PST"]
[Termination "Homino won on time"]

1. c4 {[%clk 0:03:00.1]} 1... c5 {[%clk 0:02:59.6]} 2. g3 {[%clk 0:02:59.3]}
2... g6 {[%clk 0:02:57.5]} 3. Bg2 {[%clk 0:02:58.7]} 3... Bg7 {[%clk 0:02:57]}
4. Nc3 {[%clk 0:02:58.5]} 4... Nf6 {[%clk 0:02:56.6]} 5. Nf3 {[%clk 0:02:56.3]}
5... O-O {[%clk 0:02:55.5]} 6. d4 {[%clk 0:02:53]} 6... cxd4 {[%clk 0:02:54.9]}
7. Nxd4 {[%clk 0:02:53.9]} 7... Nc6 {[%clk 0:02:55]} 8. O-O {[%clk 0:02:53.3]}
8... Nxd4 {[%clk 0:02:54.6]} 9. Qxd4 {[%clk 0:02:52.7]} 9... d6 {[%clk 0:02:54]}
10. Qd3 {[%clk 0:02:52]} 10... Bf5 {[%clk 0:02:52.4]} 11. e4 {[%clk 0:02:51.2]}
11... Be6 {[%clk 0:02:52.8]} 12. Bd2 {[%clk 0:02:50.6]} 12... a5 {[%clk
0:02:46.5]} 13. Rac1 {[%clk 0:02:32.1]} 13... a4 {[%clk 0:02:38.7]} 14. Rfd1
{[%clk 0:02:21.2]} 14... Nd7 {[%clk 0:02:36.3]} 15. Qe2 {[%clk 0:01:41.2]} 15...
Ne5 {[%clk 0:02:28.2]} 16. Nd5 {[%clk 0:01:24.5]} 16... Rc8 {[%clk 0:02:01.1]}
17. Bg5 {[%clk 0:00:52.8]} 17... Re8 {[%clk 0:01:57.7]} 18. h3 {[%clk
0:00:45.6]} 18... h6 {[%clk 0:01:55.9]} 19. Be3 {[%clk 0:00:45]} 19... Nd7
{[%clk 0:01:47.3]} 20. Qd2 {[%clk 0:00:27.4]} 20... Kh7 {[%clk 0:01:45.6]} 21.
b3 {[%clk 0:00:26.5]} 21... axb3 {[%clk 0:01:42.7]} 22. axb3 {[%clk 0:00:27.4]}
22... Nc5 {[%clk 0:01:42.9]} 23. Rb1 {[%clk 0:00:24.8]} 23... Ra8 {[%clk
0:01:35.6]} 24. b4 {[%clk 0:00:23.8]} 24... Nd7 {[%clk 0:01:32.4]} 25. Kh2
{[%clk 0:00:23.2]} 25... Ra3 {[%clk 0:01:28.5]} 26. c5 {[%clk 0:00:17.2]} 26...
dxc5 {[%clk 0:01:20.1]} 27. bxc5 {[%clk 0:00:16.1]} 27... Qc8 {[%clk 0:01:12.7]}
28. Nb6 {[%clk 0:00:12.4]} 28... Nxb6 {[%clk 0:01:11.6]} 29. Rxb6 {[%clk
0:00:11]} 29... Ra2 {[%clk 0:01:09.2]} 30. Qb4 {[%clk 0:00:09.6]} 30... Rd8
{[%clk 0:00:59.2]} 31. Rxd8 {[%clk 0:00:07.9]} 31... Qxd8 {[%clk 0:01:00.1]} 32.
Rxb7 {[%clk 0:00:08.1]} 32... Rb2 {[%clk 0:00:57.5]} 33. Qxb2 {[%clk 0:00:06.2]}
33... Bxb2 {[%clk 0:00:58.4]} 34. Rxb2 {[%clk 0:00:06.2]} 34... Qd3 {[%clk
0:00:48.8]} 35. e5 {[%clk 0:00:04.3]} 35... Qc4 {[%clk 0:00:45.3]} 36. c6 {[%clk
0:00:02.3]} 36... Bf5 {[%clk 0:00:34.8]} 0-1

[Event "*** Titled Tuesday Blitz"]
[Site "Chess.com"]
[Date "2020.12.01"]
[Round "2"]
[White "ybruned"]
[Black "PriSachu"]
[Result "0-1"]
[WhiteElo "2295"]
[BlackElo "2545"]
[TimeControl "180+1"]
[EndTime "10:17:19 PST"]
[Termination "PriSachu won by resignation"]

1. e4 {[%clk 0:03:00.1]} 1... e5 {[%clk 0:02:49]} 2. Nf3 {[%clk 0:02:58.9]} 2...
Nc6 {[%clk 0:02:48.4]} 3. Bb5 {[%clk 0:02:58]} 3... a6 {[%clk 0:02:48.6]} 4.
Bxc6 {[%clk 0:02:56.9]} 4... dxc6 {[%clk 0:02:48.6]} 5. Nc3 {[%clk 0:02:57.2]}
5... f6 {[%clk 0:02:46.8]} 6. d4 {[%clk 0:02:56.5]} 6... exd4 {[%clk 0:02:41.5]}
7. Qxd4 {[%clk 0:02:55.4]} 7... Qxd4 {[%clk 0:02:39.1]} 8. Nxd4 {[%clk
0:02:55.1]} 8... Bd7 {[%clk 0:02:38.3]} 9. Bf4 {[%clk 0:02:54.8]} 9... O-O-O
{[%clk 0:02:38.3]} 10. O-O-O {[%clk 0:02:54.9]} 10... Ne7 {[%clk 0:02:38.5]} 11.
f3 {[%clk 0:02:54.7]} 11... Ng6 {[%clk 0:02:39]} 12. Bg3 {[%clk 0:02:54.4]}
12... Bb4 {[%clk 0:02:38.1]} 13. Nde2 {[%clk 0:02:48.7]} 13... Be6 {[%clk
0:02:31.6]} 14. Rxd8+ {[%clk 0:02:44.5]} 14... Rxd8 {[%clk 0:02:30]} 15. Rd1
{[%clk 0:02:45.1]} 15... Rxd1+ {[%clk 0:02:27.9]} 16. Kxd1 {[%clk 0:02:44.5]}
16... Kd7 {[%clk 0:02:20]} 17. a3 {[%clk 0:02:41]} 17... Be7 {[%clk 0:02:18.5]}
18. Nf4 {[%clk 0:02:38.1]} 18... Nxf4 {[%clk 0:02:14.9]} 19. Bxf4 {[%clk
0:02:37.5]} 19... a5 {[%clk 0:02:00.8]} 20. a4 {[%clk 0:02:27.4]} 20... Bc4
{[%clk 0:01:48.3]} 21. b3 {[%clk 0:02:25.9]} 21... Bf1 {[%clk 0:01:44.4]} 22. g3
{[%clk 0:02:25]} 22... g5 {[%clk 0:01:41.2]} 23. Be3 {[%clk 0:02:23.1]} 23... h5
{[%clk 0:01:41.6]} 24. Ne2 {[%clk 0:02:13.8]} 24... Bd6 {[%clk 0:01:32.6]} 25.
Ke1 {[%clk 0:02:11.8]} 25... Bh3 {[%clk 0:01:31.5]} 26. f4 {[%clk 0:02:03.2]}
26... gxf4 {[%clk 0:01:18.3]} 27. Nxf4 {[%clk 0:02:02.2]} 27... Bg4 {[%clk
0:01:16.6]} 28. h3 {[%clk 0:01:49.7]} 28... Bf3 {[%clk 0:01:16.7]} 29. Kf2
{[%clk 0:01:42]} 29... Bxe4 {[%clk 0:01:14.9]} 30. Nd3 {[%clk 0:01:39.9]} 30...
b6 {[%clk 0:01:07.8]} 31. g4 {[%clk 0:01:35.2]} 31... hxg4 {[%clk 0:01:07.2]}
32. hxg4 {[%clk 0:01:34.6]} 32... Ke6 {[%clk 0:01:07.6]} 33. Ke2 {[%clk
0:01:32.3]} 33... c5 {[%clk 0:01:03.2]} 34. Kd2 {[%clk 0:01:28.6]} 34... Bf3
{[%clk 0:01:00.3]} 35. g5 {[%clk 0:01:28.6]} 35... f5 {[%clk 0:00:52.7]} 36.
Nf4+ {[%clk 0:01:18.7]} 36... Kd7 {[%clk 0:00:49.1]} 37. Nd3 {[%clk 0:01:15.1]}
37... Bh5 {[%clk 0:00:46.6]} 38. Bf4 {[%clk 0:01:14.4]} 38... Bf7 {[%clk
0:00:37.5]} 39. c4 {[%clk 0:01:10.9]} 39... Ke6 {[%clk 0:00:33.4]} 40. Kc3
{[%clk 0:01:01]} 40... Bxf4 {[%clk 0:00:27.4]} 41. Nxf4+ {[%clk 0:00:59.9]}
41... Ke5 {[%clk 0:00:28.3]} 42. g6 {[%clk 0:00:55.4]} 42... Bg8 {[%clk
0:00:27.3]} 43. Nh5 {[%clk 0:00:54.7]} 43... f4 {[%clk 0:00:25.2]} 44. Kd3
{[%clk 0:00:50.9]} 44... Kf5 {[%clk 0:00:23.8]} 45. g7 {[%clk 0:00:49.5]} 45...
Kg5 {[%clk 0:00:21.2]} 46. Nxf4 {[%clk 0:00:45.3]} 46... Kxf4 {[%clk 0:00:20.8]}
47. Kc3 {[%clk 0:00:46.2]} 47... Ke3 {[%clk 0:00:20.9]} 0-1

[Event "*** Titled Tuesday Blitz"]
[Site "Chess.com"]
[Date "2020.12.01"]
[Round "2"]
[White "ural58"]
[Black "politeplayer"]
[Result "1-0"]
[WhiteElo "2447"]
[BlackElo "2252"]
[TimeControl "180+1"]
[EndTime "10:17:19 PST"]
[Termination "ural58 won by resignation"]

1. e4 {[%clk 0:03:00.6]} 1... c5 {[%clk 0:01:53.7]} 2. b3 {[%clk 0:03:00]} 2...
Nf6 {[%clk 0:01:50.8]} 3. e5 {[%clk 0:02:59.7]} 3... Nd5 {[%clk 0:01:50.9]} 4.
Nc3 {[%clk 0:03:00.6]} 4... Nxc3 {[%clk 0:01:50.3]} 5. dxc3 {[%clk 0:03:01.5]}
5... b6 {[%clk 0:01:48.7]} 6. Nf3 {[%clk 0:03:01.2]} 6... Bb7 {[%clk 0:01:48.9]}
7. Bc4 {[%clk 0:03:00.9]} 7... e6 {[%clk 0:01:46.5]} 8. O-O {[%clk 0:02:58.9]}
8... d6 {[%clk 0:01:45.7]} 9. exd6 {[%clk 0:02:53.6]} 9... Bxd6 {[%clk
0:01:45.4]} 10. Bg5 {[%clk 0:02:43.8]} 10... Qc7 {[%clk 0:01:40.9]} 11. Bh4
{[%clk 0:02:39.9]} 11... Nc6 {[%clk 0:01:33.8]} 12. Bg3 {[%clk 0:02:39.5]} 12...
O-O-O {[%clk 0:01:29.7]} 13. Qe2 {[%clk 0:02:36.5]} 13... Bxg3 {[%clk
0:01:22.6]} 14. hxg3 {[%clk 0:02:36.3]} 14... Kb8 {[%clk 0:01:03.4]} 15. a4
{[%clk 0:02:35.5]} 15... Na5 {[%clk 0:01:00.3]} 16. Ba6 {[%clk 0:02:30.1]} 16...
h5 {[%clk 0:00:33.8]} 17. Bxb7 {[%clk 0:02:29.2]} 17... Nxb7 {[%clk 0:00:32.3]}
18. Rad1 {[%clk 0:02:29]} 18... Rxd1 {[%clk 0:00:30.8]} 19. Rxd1 {[%clk
0:02:28.7]} 19... Rd8 {[%clk 0:00:30.6]} 20. Rxd8+ {[%clk 0:02:27.4]} 20... Nxd8
{[%clk 0:00:28.7]} 21. Ne5 {[%clk 0:02:22.7]} 21... g6 {[%clk 0:00:26.3]} 22.
Qe4 {[%clk 0:02:17.1]} 22... Qd6 {[%clk 0:00:26.4]} 23. Kh2 {[%clk 0:02:06.8]}
23... Qd5 {[%clk 0:00:25.5]} 24. Qf4 {[%clk 0:02:06.2]} 24... Qd6 {[%clk
0:00:16.1]} 25. Nxg6 {[%clk 0:01:54]} 25... Qxf4 {[%clk 0:00:12.2]} 26. Nxf4
{[%clk 0:01:53.7]} 26... h4 {[%clk 0:00:10.6]} 27. gxh4 {[%clk 0:01:53.3]} 27...
Kc7 {[%clk 0:00:10.1]} 28. h5 {[%clk 0:01:53.1]} 28... f6 {[%clk 0:00:10.1]} 29.
h6 {[%clk 0:01:50.8]} 29... Kd6 {[%clk 0:00:10.5]} 30. h7 {[%clk 0:01:50.2]}
30... Nf7 {[%clk 0:00:10.9]} 31. Ng6 {[%clk 0:01:50.8]} 31... c4 {[%clk
0:00:11.1]} 32. b4 {[%clk 0:01:45.7]} 32... b5 {[%clk 0:00:09.8]} 33. axb5
{[%clk 0:01:44.5]} 33... Kc7 {[%clk 0:00:08.6]} 34. Kg3 {[%clk 0:01:35.2]} 34...
Kb6 {[%clk 0:00:08.4]} 35. h8=Q {[%clk 0:01:32.3]} 35... Nxh8 {[%clk 0:00:07.6]}
36. Nxh8 {[%clk 0:01:33.2]} 36... Kxb5 {[%clk 0:00:08.1]} 37. Ng6 {[%clk
0:01:32.7]} 37... Ka4 {[%clk 0:00:08.3]} 38. Nf8 {[%clk 0:01:33.6]} 38... Ka3
{[%clk 0:00:08.4]} 39. Nxe6 {[%clk 0:01:26.8]} 39... Kb2 {[%clk 0:00:08.7]} 40.
Kf4 {[%clk 0:01:14.2]} 40... Kxc3 {[%clk 0:00:08.9]} 41. b5 {[%clk 0:01:12.2]}
41... Kxc2 {[%clk 0:00:08.3]} 42. Kf5 {[%clk 0:01:10.1]} 42... Kb3 {[%clk
0:00:07.5]} 43. Nd4+ {[%clk 0:01:06.2]} 43... Kb4 {[%clk 0:00:07.6]} 44. g4
{[%clk 0:01:06.1]} 44... c3 {[%clk 0:00:07.8]} 45. f4 {[%clk 0:01:04.9]} 45...
Kc4 {[%clk 0:00:08]} 46. Ke4 {[%clk 0:01:03.4]} 46... c2 {[%clk 0:00:06.6]} 47.
Nxc2 {[%clk 0:01:03.3]} 47... Kxb5 {[%clk 0:00:07.1]} 48. g5 {[%clk 0:01:02.9]}
48... fxg5 {[%clk 0:00:07.3]} 49. fxg5 {[%clk 0:01:03.5]} 1-0

[Event "*** Titled Tuesday Blitz"]
[Site "Chess.com"]
[Date "2020.12.01"]
[Round "2"]
[White "Keures"]
[Black "vwnv7"]
[Result "1-0"]
[WhiteElo "2230"]
[BlackElo "2402"]
[TimeControl "180+1"]
[EndTime "10:17:20 PST"]
[Termination "Keures won on time"]

1. d4 {[%clk 0:03:00.9]} 1... d5 {[%clk 0:02:58.4]} 2. c4 {[%clk 0:03:00.9]}
2... e6 {[%clk 0:02:58.4]} 3. Nc3 {[%clk 0:03:01]} 3... Nf6 {[%clk 0:02:57.3]}
4. Bg5 {[%clk 0:03:00.9]} 4... Be7 {[%clk 0:02:53.6]} 5. Qc2 {[%clk 0:03:00.8]}
5... O-O {[%clk 0:02:44.9]} 6. e3 {[%clk 0:03:00.5]} 6... h6 {[%clk 0:02:37.1]}
7. Bh4 {[%clk 0:02:58.9]} 7... b6 {[%clk 0:02:35.4]} 8. cxd5 {[%clk 0:02:54.5]}
8... Nxd5 {[%clk 0:02:30.3]} 9. Nxd5 {[%clk 0:02:51.4]} 9... exd5 {[%clk
0:02:24.2]} 10. Bxe7 {[%clk 0:02:49.8]} 10... Qxe7 {[%clk 0:02:24.1]} 11. Rc1
{[%clk 0:02:48.4]} 11... c6 {[%clk 0:02:15.6]} 12. Nf3 {[%clk 0:02:38.8]} 12...
Ba6 {[%clk 0:02:05.7]} 13. Bxa6 {[%clk 0:02:35.6]} 13... Nxa6 {[%clk 0:02:05.4]}
14. a3 {[%clk 0:02:01]} 14... Rac8 {[%clk 0:02:03.2]} 15. b4 {[%clk 0:01:59.1]}
15... c5 {[%clk 0:01:56.5]} 16. bxc5 {[%clk 0:01:58.5]} 16... bxc5 {[%clk
0:01:56.4]} 17. O-O {[%clk 0:01:58.5]} 17... c4 {[%clk 0:01:50.1]} 18. Qa4
{[%clk 0:01:49.9]} 18... Qd6 {[%clk 0:01:12.1]} 19. Ne5 {[%clk 0:01:42.7]} 19...
f6 {[%clk 0:00:48.5]} 20. Ng6 {[%clk 0:01:34.8]} 20... Rfe8 {[%clk 0:00:43.1]}
21. Rb1 {[%clk 0:01:32.4]} 21... Rb8 {[%clk 0:00:43]} 22. h4 {[%clk 0:01:10.8]}
22... Kf7 {[%clk 0:00:31.4]} 23. h5 {[%clk 0:01:07.3]} 23... c3 {[%clk 0:00:20]}
24. Rxb8 {[%clk 0:01:01.9]} 24... Rxb8 {[%clk 0:00:18.7]} 25. Rc1 {[%clk
0:01:02.1]} 25... Rc8 {[%clk 0:00:12.1]} 26. Qb5 {[%clk 0:00:55.5]} 26... Rc7
{[%clk 0:00:06.7]} 27. Rc2 {[%clk 0:00:46.2]} 27... Qc6 {[%clk 0:00:06]} 28. Qb3
{[%clk 0:00:35.7]} 28... Qc4 {[%clk 0:00:05.1]} 29. Qb1 {[%clk 0:00:22.4]} 29...
Qa4 {[%clk 0:00:02.7]} 30. Qc1 {[%clk 0:00:20.1]} 30... Qb3 {[%clk 0:00:01.9]}
31. g3 {[%clk 0:00:19.1]} 1-0